fUSD/lending_fUSD_20241121
["ID","MTS","AMOUNT","RATE_DAILY","PERIOD"]
[342936283,1732211460742,-153.0,0.00039303,2]
[342936284,1732211460752,-1376.4,0.00039451,11]
[342936285,1732211460762,-1193.7,0.00039451,11]
[342936286,1732211460773,-503.16,0.00039451,11]
[342936287,1732211460783,-509.1,0.00039451,11]
[342936288,1732211460793,-749.44,0.00039451,11]
[342936289,1732211460804,-728.65,0.00039451,11]
[342936290,1732211460815,-500.0,0.00039451,11]
[342936291,1732211460825,-500.0,0.00039451,11]
[342936292,1732211460835,-1024.4,0.00039451,11]
[342936293,1732211460844,-500.0,0.00039451,11]
[342936294,1732211460854,-500.0,0.00039451,11]
[342936295,1732211460864,-761.29,0.00039451,11]
[342936296,1732211460874,-500.0,0.00039451,11]
[342936297,1732211460884,-556.45,0.00039451,11]
[342936298,1732211460893,-566.21,0.00039451,11]
[342936299,1732211460903,-163.48415389,0.00039452,11]
[342936300,1732211460913,-474.93438511,0.00039452,11]
[342936301,1732211460923,-500.0,0.00039452,11]
[342936302,1732211460933,-500.0,0.00039452,11]
[342936303,1732211460943,-500.0,0.00039452,11]
[342936304,1732211460954,-500.0,0.00039452,11]
[342936305,1732211460965,-500.0,0.00039452,11]
[342936306,1732211460974,-500.0,0.00039452,11]
[342936307,1732211460984,-500.0,0.00039452,11]
[342936308,1732211460994,-500.0,0.00039452,11]
[342936309,1732211461004,-500.0,0.00039452,11]
[342936310,1732211461014,-500.0,0.00039452,11]
[342936311,1732211461026,-500.0,0.00039452,11]
[342936312,1732211461036,-500.0,0.00039452,11]
[342936313,1732211461046,-500.0,0.00039452,11]
[342936314,1732211461056,-500.0,0.00039452,11]
[342936315,1732211461066,-449.29438454,0.00039452,11]
[342936316,1732211461076,-500.0,0.00039452,11]
[342936317,1732211461086,-571.88,0.00039452,11]
[342936318,1732211461096,-500.0,0.00039452,11]
[342936319,1732211461106,-500.0,0.00039452,11]
[342936320,1732211461119,-500.0,0.00039452,11]
[342936321,1732211461129,-500.0,0.00039452,11]
[342936322,1732211461138,-500.0,0.00039452,11]
[342936323,1732211461148,-500.0,0.00039452,11]
[342936324,1732211461159,-500.0,0.00039452,11]
[342936325,1732211461169,-500.0,0.00039452,11]
[342936326,1732211461180,-500.0,0.00039452,11]
[342936327,1732211461190,-500.0,0.00039452,11]
[342936328,1732211461202,-514.2,0.00039452,11]
[342936329,1732211461212,-500.0,0.00039452,11]
[342936330,1732211461221,-500.0,0.00039452,11]
[342936331,1732211461231,-500.0,0.00039452,11]
[342936332,1732211461241,-500.0,0.00039452,11]
[342936333,1732211461251,-500.0,0.00039452,11]
[342936334,1732211461260,-500.0,0.00039452,11]
[342936335,1732211461271,-180.68,0.00039452,11]
[342936336,1732211461286,-500.0,0.00039452,11]
[342936337,1732211461297,-504.23,0.00039452,11]
[342936338,1732211461308,-333.9650759,0.00039452,11]
[342936339,1732211461318,-642.95,0.00039452,11]
[342936340,1732211461329,-601.33,0.00039452,11]
[342936341,1732211461339,-500.0,0.00039452,11]
[342936342,1732211461350,-500.0,0.00039452,11]
[342936343,1732211461361,-170.97,0.00039452,11]
[342936344,1732211461373,-228.82254456,0.00039452,11]
[342936345,1732211461383,-500.0,0.00039452,11]
[342936346,1732211461394,-500.0,0.00039452,11]
[342936347,1732211461405,-500.0,0.00039452,11]
[342936348,1732211461416,-643.94,0.00039452,11]
[342936349,1732211461427,-759.06,0.00039452,11]
[342936350,1732211461437,-266.95552533,0.00039452,11]
[342936351,1732211461447,-500.0,0.00039452,11]
[342936352,1732211461457,-539.3,0.00039452,11]
[342936353,1732211461467,-500.0,0.00039452,11]
[342936354,1732211461478,-500.0,0.00039452,11]
[342936355,1732211461488,-500.0,0.00039452,11]
[342936356,1732211461706,-500.0,0.00039452,11]
[342936357,1732211461715,-500.0,0.00039452,11]
[342936358,1732211461725,-500.0,0.00039452,11]
[342936359,1732211461734,-500.0,0.00039452,11]
[342936360,1732211461744,-500.0,0.00039452,11]
[342936361,1732211461753,-500.0,0.00039452,11]
[342936362,1732211461763,-639.77,0.00039452,11]
[342936363,1732211461778,-500.0,0.00039452,11]
[342936364,1732211461788,-574.77,0.00039452,11]
[342936365,1732211461797,-500.0,0.00039452,11]
[342936366,1732211461807,-500.0,0.00039452,11]
[342936367,1732211461816,-500.0,0.00039452,11]
[342936368,1732211461826,-500.0,0.00039452,11]
[342936369,1732211461836,-796.67,0.00039452,11]
[342936370,1732211461845,-500.0,0.00039452,11]
[342936371,1732211461855,-500.0,0.00039452,11]
[342936372,1732211461865,-500.0,0.00039452,11]
[342936373,1732211461875,-500.0,0.00039452,11]
[342936374,1732211461884,-596.01272016,0.00039452,11]
[342936375,1732211461894,-500.0,0.00039452,11]
[342936376,1732211461903,-500.0,0.00039452,11]
[342936377,1732211461913,-500.0,0.00039452,11]
[342936378,1732211461922,-500.0,0.00039452,11]
[342936379,1732211461932,-655.27,0.00039452,11]
[342936380,1732211461941,-500.0,0.00039452,11]
[342936381,1732211461951,-500.0,0.00039452,11]
[342936382,1732211461960,-500.0,0.00039452,11]
[342936383,1732211461970,-500.0,0.00039452,11]
[342936384,1732211461979,-811.35,0.00039452,11]
[342936385,1732211461989,-500.0,0.00039452,11]
[342936386,1732211461998,-500.0,0.00039452,11]
[342936387,1732211462008,-417.86,0.00039452,11]
[342936388,1732211462017,-500.0,0.00039452,11]
[342936389,1732211462031,-500.0,0.00039452,11]
[342936390,1732211462041,-500.0,0.00039452,11]
[342936391,1732211462051,-500.0,0.00039452,11]
[342936392,1732211462061,-500.0,0.00039452,11]
[342936393,1732211462070,-500.0,0.00039452,11]
[342936394,1732211462081,-500.0,0.00039452,11]
[342936395,1732211462091,-500.0,0.00039452,11]
[342936396,1732211462100,-500.0,0.00039452,11]
[342936397,1732211462114,-516.06,0.00039452,11]
[342936398,1732211462125,-500.0,0.00039452,11]
[342936399,1732211462136,-500.0,0.00039452,11]
[342936400,1732211462146,-500.0,0.00039452,11]
[342936401,1732211462157,-500.0,0.00039452,11]
[342936402,1732211462167,-885.36,0.00039452,11]
[342936403,1732211462177,-500.0,0.00039452,11]
[342936404,1732211462187,-500.0,0.00039452,11]
[342936405,1732211462198,-500.0,0.00039452,11]
[342936406,1732211462208,-960.07,0.00039452,11]
[342936407,1732211462217,-500.0,0.00039452,11]
[342936408,1732211462226,-500.0,0.00039452,11]
[342936409,1732211462237,-500.0,0.00039452,11]
[342936410,1732211462246,-500.0,0.00039452,11]
[342936411,1732211462256,-500.0,0.00039452,11]
[342936412,1732211462268,-500.0,0.00039452,11]
[342936413,1732211462282,-500.0,0.00039452,11]
[342936414,1732211462292,-1190.0,0.00039452,11]
[342936415,1732211462302,-500.0,0.00039452,11]
[342936416,1732211462312,-805.46,0.00039452,11]
[342936417,1732211462322,-500.0,0.00039452,11]
[342936418,1732211462332,-500.0,0.00039452,11]
[342936419,1732211462342,-5893.34,0.00039452,11]
[342936420,1732211462352,-500.0,0.00039452,11]
[342936421,1732211462362,-582.49,0.00039452,11]
[342936422,1732211462373,-500.0,0.00039452,11]
[342936423,1732211462383,-1226.36,0.00039452,11]
[342936424,1732211462393,-219.78469327,0.00039452,11]
[342936425,1732211462403,-500.0,0.00039452,11]
[342936426,1732211462413,-500.0,0.00039452,11]
[342936427,1732211462423,-500.0,0.00039452,11]
[342936428,1732211462436,-517.93,0.00039452,11]
[342936429,1732211462445,-500.0,0.00039452,11]
[342936430,1732211462455,-714.78,0.00039452,11]
[342936431,1732211462464,-500.0,0.00039452,11]
[342936432,1732211462474,-500.0,0.00039452,11]
[342936433,1732211462484,-760.28,0.00039452,11]
[342936434,1732211462494,-695.56,0.00039452,11]
[342936435,1732211462503,-500.0,0.00039452,11]
[342936436,1732211462513,-500.0,0.00039452,11]
[342936437,1732211462525,-887.75,0.00039452,11]
[342936438,1732211462534,-623.78,0.00039452,11]
[342936439,1732211462543,-1599.72,0.00039452,11]
[342936440,1732211462553,-500.0,0.00039452,11]
[342936441,1732211462563,-500.0,0.00039452,11]
[342936442,1732211462573,-500.0,0.00039452,11]
[342936443,1732211462583,-540.66,0.00039452,11]
[342936444,1732211462593,-196.16,0.00039452,11]
[342936445,1732211462603,-500.0,0.00039452,11]
[342936446,1732211462612,-513.15,0.00039452,11]
[342936447,1732211462622,-500.0,0.00039452,11]
[342936448,1732211462635,-500.0,0.00039452,11]
[342936449,1732211462657,-500.0,0.00039452,11]
[342936450,1732211462680,-669.3,0.00039452,11]
[342936451,1732211462690,-500.0,0.00039452,11]
[342936452,1732211462701,-500.0,0.00039452,11]
[342936453,1732211462710,-500.0,0.00039452,11]
[342936454,1732211462720,-1678.44,0.00039452,11]
[342936455,1732211462731,-292.12,0.00039452,11]
[342936456,1732211462740,-500.0,0.00039452,11]
[342936457,1732211462750,-500.0,0.00039452,11]
[342936458,1732211462760,-500.0,0.00039452,11]
[342936459,1732211462769,-999.52,0.00039452,11]
[342936460,1732211462781,-545.16,0.00039452,11]
[342936461,1732211462791,-1474.25,0.00039452,11]
[342936462,1732211462800,-1174.82,0.00039452,11]
[342936463,1732211462810,-500.0,0.00039452,11]
[342936464,1732211462819,-500.0,0.00039452,11]
[342936465,1732211462829,-500.0,0.00039452,11]
[342936466,1732211462839,-500.0,0.00039452,11]
[342936467,1732211462848,-500.0,0.00039452,11]
[342936468,1732211462858,-500.0,0.00039452,11]
[342936469,1732211462867,-608.89,0.00039452,11]
[342936470,1732211462877,-500.0,0.00039452,11]
[342936471,1732211462891,-500.0,0.00039452,11]
[342936472,1732211462906,-500.0,0.00039452,11]
[342936473,1732211462917,-637.7,0.00039452,11]
[342936474,1732211462927,-300.0,0.00039452,11]
[342936475,1732211462937,-500.0,0.00039452,11]
[342936476,1732211462947,-500.0,0.00039452,11]
[342936477,1732211462956,-500.0,0.00039452,11]
[342936478,1732211462966,-1921.22,0.00039452,11]
[342936479,1732211462976,-763.05,0.00039452,11]
[342936480,1732211462986,-548.27,0.00039452,11]
[342936481,1732211462995,-500.0,0.00039452,11]
[342936482,1732211463005,-579.96,0.00039452,11]
[342936483,1732211463015,-500.0,0.00039452,11]
[342936484,1732211463028,-500.0,0.00039452,11]
[342936485,1732211463037,-500.0,0.00039452,11]
[342936486,1732211463047,-500.0,0.00039452,11]
[342936487,1732211463057,-518.1,0.00039452,11]
[342936488,1732211463067,-500.0,0.00039452,11]
[342936489,1732211463078,-500.0,0.00039452,7]
[342936490,1732211463088,-643.58,0.00039452,11]
[342936491,1732211463099,-987.26,0.00039452,11]
[342936492,1732211463111,-500.0,0.00039452,11]
[342936493,1732211463122,-500.0,0.00039452,11]
[342936494,1732211463133,-681.75,0.00039452,11]
[342936495,1732211463143,-232.30667919,0.00039452,11]
[342936496,1732211463155,-168.31874709,0.00039452,11]
[342936497,1732211463165,-500.0,0.00039452,11]
[342936498,1732211463174,-500.0,0.00039452,11]
[342936499,1732211463184,-500.0,0.00039452,11]
[342936500,1732211463194,-500.38648241,0.00039452,11]
[342936501,1732211463205,-2074.05,0.00039452,11]
[342936502,1732211463214,-500.0,0.00039452,11]
[342936503,1732211463223,-7086.76,0.00039452,2]
[342936504,1732211463233,-500.0,0.00039452,11]
[342936505,1732211463243,-500.0,0.00039452,11]
[342936506,1732211463252,-500.0,0.00039452,11]
[342936507,1732211463262,-5640.54,0.00039452,11]
[342936508,1732211463274,-536.96,0.00039452,11]
[342936509,1732211463285,-500.0,0.00039452,11]
[342936510,1732211463295,-369.77713187,0.00039452,11]
[342936511,1732211463305,-500.0,0.00039452,11]
[342936512,1732211463315,-500.0,0.00039452,11]
[342936513,1732211463325,-500.0,0.00039452,11]
[342936514,1732211463335,-500.0,0.00039452,11]
[342936515,1732211463345,-500.0,0.00039452,11]
[342936516,1732211463354,-500.0,0.00039452,11]
[342936517,1732211463364,-626.13,0.00039452,11]
[342936518,1732211463374,-500.0,0.00039452,11]
[342936519,1732211463384,-500.0,0.00039452,11]
[342936520,1732211463393,-5897.64782842,0.00039681,15]
[342936521,1732211463403,-1376.4,0.00039725,11]
[342936522,1732211463412,-1193.7,0.00039725,11]
[342936523,1732211463422,-503.16,0.00039725,11]
[342936524,1732211463432,-509.1,0.00039725,11]
[342936525,1732211463442,-749.44,0.00039725,11]
[342936526,1732211463452,-728.65,0.00039725,11]
[342936527,1732211463465,-500.0,0.00039725,11]
[342936528,1732211463475,-500.0,0.00039725,11]
[342936529,1732211463485,-1024.4,0.00039725,11]
[342936530,1732211463495,-500.0,0.00039725,11]
[342936531,1732211463505,-329.11684592,0.00039725,11]
[342936532,1732211463515,-761.29,0.00039725,11]
[342936533,1732211463528,-500.0,0.00039725,11]
[342936534,1732211463538,-556.45,0.00039725,11]
[342936535,1732211463549,-566.21,0.00039725,11]
[342936536,1732211463558,-500.0,0.00039726,11]
[342936537,1732211463569,-500.0,0.00039726,11]
[342936538,1732211463582,-500.0,0.00039726,11]
[342936539,1732211463594,-500.0,0.00039726,11]
[342936540,1732211463604,-500.0,0.00039726,11]
[342936541,1732211463615,-500.0,0.00039726,11]
[342936542,1732211463625,-500.0,0.00039726,11]
[342936543,1732211463635,-500.0,0.00039726,11]
[342936544,1732211463649,-500.0,0.00039726,11]
[342936545,1732211463670,-500.0,0.00039726,11]
[342936546,1732211463685,-500.0,0.00039726,11]
[342936547,1732211463694,-500.0,0.00039726,11]
[342936548,1732211463704,-500.0,0.00039726,11]
[342936549,1732211463714,-500.0,0.00039726,11]
[342936550,1732211463725,-500.0,0.00039726,11]
[342936551,1732211463735,-571.88,0.00039726,11]
[342936552,1732211463744,-500.0,0.00039726,11]
[342936553,1732211463754,-500.0,0.00039726,11]
[342936554,1732211463764,-500.0,0.00039726,11]
[342936555,1732211463775,-500.0,0.00039726,11]
[342936556,1732211463785,-500.0,0.00039726,11]
[342936557,1732211463795,-500.0,0.00039726,11]
[342936558,1732211463804,-500.0,0.00039726,11]
[342936559,1732211463814,-500.0,0.00039726,11]
[342936560,1732211463823,-548.87745122,0.00039726,11]
[342936561,1732211463832,-514.2,0.00039726,11]
[342936562,1732211463842,-500.0,0.00039726,11]
[342936563,1732211463852,-573.91185478,0.00039726,11]
[342936564,1732211463861,-500.0,0.00039726,11]
[342936565,1732211463870,-500.0,0.00039726,11]
[342936566,1732211463880,-588.05,0.00039726,11]
[342936567,1732211463889,-500.0,0.00039726,11]
[342936568,1732211463899,-500.0,0.00039726,11]
[342936569,1732211463909,-504.23,0.00039726,11]
[342936570,1732211463918,-601.33,0.00039726,11]
[342936571,1732211463928,-500.0,0.00039726,11]
[342936572,1732211463938,-500.0,0.00039726,11]
[342936573,1732211463948,-500.0,0.00039726,11]
[342936574,1732211463957,-759.06,0.00039726,11]
[342936575,1732211463967,-500.0,0.00039726,11]
[342936576,1732211463976,-539.3,0.00039726,11]
[342936577,1732211463985,-500.0,0.00039726,11]
[342936578,1732211463995,-500.0,0.00039726,11]
[342936579,1732211464004,-500.0,0.00039726,11]
[342936580,1732211464013,-500.0,0.00039726,11]
[342936581,1732211464022,-500.0,0.00039726,11]
[342936582,1732211464033,-208.80810126,0.00039726,11]
[342936583,1732211464043,-500.0,0.00039726,11]
[342936584,1732211464056,-500.0,0.00039726,11]
[342936585,1732211464067,-639.77,0.00039726,11]
[342936586,1732211464078,-500.0,0.00039726,11]
[342936587,1732211464089,-574.77,0.00039726,11]
[342936588,1732211464099,-500.0,0.00039726,11]
[342936589,1732211464114,-500.0,0.00039726,11]
[342936590,1732211464123,-500.0,0.00039726,11]
[342936591,1732211464134,-500.0,0.00039726,11]
[342936592,1732211464144,-796.67,0.00039726,11]
[342936593,1732211464214,-500.0,0.00039726,11]
[342936594,1732211464224,-500.0,0.00039726,11]
[342936595,1732211464235,-500.0,0.00039726,11]
[342936596,1732211464245,-500.0,0.00039726,11]
[342936597,1732211464256,-360.88211716,0.00039726,11]
[342936598,1732211464265,-500.0,0.00039726,11]
[342936599,1732211464278,-500.0,0.00039726,11]
[342936600,1732211464294,-655.27,0.00039726,11]
[342936601,1732211464304,-500.0,0.00039726,11]
[342936602,1732211464314,-500.0,0.00039726,11]
[342936603,1732211464325,-500.0,0.00039726,11]
[342936604,1732211464335,-811.35,0.00039726,11]
[342936605,1732211464346,-500.0,0.00039726,11]
[342936606,1732211464356,-500.0,0.00039726,11]
[342936607,1732211464366,-500.0,0.00039726,11]
[342936608,1732211464376,-500.0,0.00039726,11]
[342936609,1732211464386,-500.0,0.00039726,11]
[342936610,1732211464397,-500.0,0.00039726,11]
[342936611,1732211464407,-500.0,0.00039726,11]
[342936612,1732211464417,-500.0,0.00039726,11]
[342936613,1732211464427,-500.0,0.00039726,11]
[342936614,1732211464437,-516.06,0.00039726,11]
[342936615,1732211464447,-500.0,0.00039726,11]
[342936616,1732211464457,-500.0,0.00039726,11]
[342936617,1732211464468,-500.0,0.00039726,11]
[342936618,1732211464479,-885.36,0.00039726,11]
[342936619,1732211464489,-500.0,0.00039726,11]
[342936620,1732211464499,-500.0,0.00039726,11]
[342936621,1732211464509,-500.0,0.00039726,11]
[342936622,1732211464520,-960.07,0.00039726,11]
[342936623,1732211464534,-500.0,0.00039726,11]
[342936624,1732211464544,-500.0,0.00039726,11]
[342936625,1732211464554,-500.0,0.00039726,11]
[342936626,1732211464563,-500.0,0.00039726,11]
[342936627,1732211464573,-500.0,0.00039726,11]
[342936628,1732211464583,-500.0,0.00039726,11]
[342936629,1732211464592,-1190.0,0.00039726,11]
[342936630,1732211464602,-500.0,0.00039726,11]
[342936631,1732211464611,-805.46,0.00039726,11]
[342936632,1732211464621,-500.0,0.00039726,11]
[342936633,1732211464630,-521.79550794,0.00039726,11]
[342936634,1732211464639,-5893.34,0.00039726,11]
[342936635,1732211464649,-500.0,0.00039726,11]
[342936636,1732211464659,-582.49,0.00039726,11]
[342936637,1732211464668,-500.0,0.00039726,11]
[342936638,1732211464677,-1226.36,0.00039726,11]
[342936639,1732211464686,-500.0,0.00039726,11]
[342936640,1732211464696,-500.0,0.00039726,11]
[342936641,1732211464705,-500.0,0.00039726,11]
[342936642,1732211464713,-714.78,0.00039726,11]
[342936643,1732211464722,-500.0,0.00039726,11]
[342936644,1732211464732,-500.0,0.00039726,11]
[342936645,1732211464741,-760.28,0.00039726,11]
[342936646,1732211464751,-695.56,0.00039726,11]
[342936647,1732211464760,-500.0,0.00039726,11]
[342936648,1732211464769,-887.75,0.00039726,11]
[342936649,1732211464782,-623.78,0.00039726,11]
[342936650,1732211464791,-1599.72,0.00039726,11]
[342936651,1732211464800,-500.0,0.00039726,11]
[342936652,1732211464809,-500.0,0.00039726,11]
[342936653,1732211464819,-540.66,0.00039726,11]
[342936654,1732211464828,-500.0,0.00039726,11]
[342936655,1732211464838,-513.15,0.00039726,11]
[342936656,1732211464847,-500.0,0.00039726,11]
[342936657,1732211464857,-500.0,0.00039726,11]
[342936658,1732211464866,-500.0,0.00039726,11]
[342936659,1732211464876,-669.3,0.00039726,11]
[342936660,1732211464885,-500.0,0.00039726,11]
[342936661,1732211464895,-176.4873406,0.00039726,11]
[342936662,1732211464903,-500.0,0.00039726,11]
[342936663,1732211464913,-1678.44,0.00039726,11]
[342936664,1732211464922,-500.0,0.00039726,11]
[342936665,1732211464931,-500.0,0.00039726,11]
[342936666,1732211464941,-500.0,0.00039726,11]
[342936667,1732211464950,-999.52,0.00039726,11]
[342936668,1732211464960,-1474.25,0.00039726,11]
[342936669,1732211464969,-1174.82,0.00039726,11]
[342936670,1732211464978,-500.0,0.00039726,11]
[342936671,1732211464987,-478.22076584,0.00039726,11]
[342936672,1732211464996,-500.0,0.00039726,11]
[342936673,1732211465005,-500.0,0.00039726,11]
[342936674,1732211465014,-500.0,0.00039726,11]
[342936675,1732211465025,-500.0,0.00039726,11]
[342936676,1732211465034,-608.89,0.00039726,11]
[342936677,1732211465043,-500.0,0.00039726,11]
[342936678,1732211465053,-500.0,0.00039726,11]
[342936679,1732211465062,-637.7,0.00039726,11]
[342936680,1732211465071,-300.0,0.00039726,11]
[342936681,1732211465080,-500.0,0.00039726,11]
[342936682,1732211465089,-500.0,0.00039726,11]
[342936683,1732211465098,-500.0,0.00039726,11]
[342936684,1732211465108,-1921.22,0.00039726,11]
[342936685,1732211465117,-763.05,0.00039726,11]
[342936686,1732211465130,-548.27,0.00039726,11]
[342936687,1732211465139,-500.0,0.00039726,11]
[342936688,1732211465147,-579.96,0.00039726,11]
[342936689,1732211465156,-500.0,0.00039726,11]
[342936690,1732211465165,-500.0,0.00039726,11]
[342936691,1732211465175,-500.0,0.00039726,11]
[342936692,1732211465183,-500.0,0.00039726,11]
[342936693,1732211465193,-518.1,0.00039726,11]
[342936694,1732211465202,-500.0,0.00039726,11]
[342936695,1732211465211,-500.0,0.00039726,7]
[342936696,1732211465221,-643.58,0.00039726,11]
[342936697,1732211465230,-987.26,0.00039726,11]
[342936698,1732211465239,-500.0,0.00039726,11]
[342936699,1732211465248,-500.0,0.00039726,11]
[342936700,1732211465257,-681.75,0.00039726,11]
[342936701,1732211465266,-500.0,0.00039726,11]
[342936702,1732211465276,-500.0,0.00039726,11]
[342936703,1732211465285,-2074.05,0.00039726,11]
[342936704,1732211465294,-500.0,0.00039726,11]
[342936705,1732211465304,-500.0,0.00039726,11]
[342936706,1732211465313,-7086.76,0.00039726,2]
[342936707,1732211465323,-500.0,0.00039726,11]
[342936708,1732211465332,-5640.54,0.00039726,11]
[342936709,1732211465341,-536.96,0.00039726,11]
[342936710,1732211465350,-500.0,0.00039726,11]
[342936711,1732211465359,-500.0,0.00039726,11]
[342936712,1732211465368,-500.0,0.00039726,11]
[342936713,1732211465377,-500.0,0.00039726,11]
[342936714,1732211465387,-500.0,0.00039726,11]
[342936715,1732211465396,-635.40527796,0.00039726,11]
[342936716,1732211465405,-626.13,0.00039726,11]
[342936717,1732211465414,-500.0,0.00039726,11]
[342936718,1732211465423,-500.0,0.00039726,11]
[342936719,1732211465433,-2400.0,0.000399,14]
[342936720,1732211465442,-1000.0,0.00039944,2]
[342936721,1732211465452,-1376.4,0.00039999,11]
[342936722,1732211465461,-1193.7,0.00039999,11]
[342936723,1732211465470,-503.16,0.00039999,11]
[342936724,1732211465479,-509.1,0.00039999,11]
[342936725,1732211465488,-749.44,0.00039999,11]
[342936726,1732211465497,-728.65,0.00039999,11]
[342936727,1732211465507,-500.0,0.00039999,11]
[342936728,1732211465516,-500.0,0.00039999,11]
[342936729,1732211465527,-1024.4,0.00039999,11]
[342936730,1732211465536,-500.0,0.00039999,11]
[342936731,1732211465546,-761.29,0.00039999,11]
[342936732,1732211465555,-1000.0,0.00039999,2]
[342936733,1732211465564,-500.0,0.00039999,11]
[342936734,1732211465573,-556.45,0.00039999,11]
[342936735,1732211465582,-566.21,0.00039999,11]
[342936736,1732211465591,-458.77302144,0.0004,120]
[342936737,1732211465600,-500.0,0.0004,30]
[342936738,1732211465609,-500.0,0.0004,11]
[342936739,1732211465619,-500.0,0.0004,11]
[342936740,1732211465628,-500.0,0.0004,11]
[342936741,1732211465637,-500.0,0.0004,11]
[342936742,1732211465647,-500.0,0.0004,11]
[342936743,1732211465657,-500.0,0.0004,11]
[342936744,1732211465666,-500.0,0.0004,11]
[342936745,1732211465675,-500.0,0.0004,11]
[342936746,1732211465685,-500.0,0.0004,11]
[342936747,1732211465694,-500.0,0.0004,11]
[342936748,1732211465704,-500.0,0.0004,11]
[342936749,1732211465714,-500.0,0.0004,11]
[342936750,1732211465723,-500.0,0.0004,11]
[342936751,1732211465732,-500.0,0.0004,11]
[342936752,1732211465742,-500.0,0.0004,11]
[342936753,1732211465752,-571.88,0.0004,11]
[342936754,1732211465761,-500.0,0.0004,11]
[342936755,1732211465770,-500.0,0.0004,11]
[342936756,1732211465781,-500.0,0.0004,11]
[342936757,1732211465790,-500.0,0.0004,11]
[342936758,1732211465799,-500.0,0.0004,11]
[342936759,1732211465808,-500.0,0.0004,11]
[342936760,1732211465817,-500.0,0.0004,11]
[342936761,1732211465826,-500.0,0.0004,11]
[342936762,1732211465835,-514.2,0.0004,11]
[342936763,1732211465844,-500.0,0.0004,11]
[342936764,1732211465853,-500.0,0.0004,11]
[342936765,1732211465862,-500.0,0.0004,11]
[342936766,1732211465871,-500.0,0.0004,11]
[342936767,1732211465881,-500.0,0.0004,11]
[342936768,1732211465890,-504.23,0.0004,11]
[342936769,1732211465899,-601.33,0.0004,11]
[342936770,1732211465908,-448.41577696,0.0004,11]
[342936771,1732211465917,-500.0,0.0004,11]
[342936772,1732211465927,-500.0,0.0004,11]
[342936773,1732211465936,-759.06,0.0004,11]
[342936774,1732211465946,-500.0,0.0004,11]
[342936775,1732211465955,-539.3,0.0004,11]
[342936776,1732211465964,-500.0,0.0004,11]
[342936777,1732211465974,-500.0,0.0004,11]
[342936778,1732211465983,-500.0,0.0004,11]
[342936779,1732211465992,-500.0,0.0004,11]
[342936780,1732211466001,-500.0,0.0004,11]
[342936781,1732211466011,-500.0,0.0004,11]
[342936782,1732211466020,-500.0,0.0004,11]